fUSD/lending_fUSD_20250407
["ID","MTS","AMOUNT","RATE_DAILY","PERIOD"]
[357318568,1744005152890,-494.52584053,0.00735745,120]
[357318569,1744005152899,-688.91881527,0.00735869,120]
[357318570,1744005152908,-2029.8096563,0.0073593,120]
[357318571,1744005152917,-155.6093181,0.00736265,120]
[357318572,1744005152928,-609.88700806,0.00736496,120]
[357318573,1744005152937,-257.16881907,0.00736842,120]
[357318574,1744005152946,-155.6093181,0.00737023,120]
[357318575,1744005152957,-152.17426933,0.00737142,120]
[357318576,1744005152968,-609.88700806,0.00737181,120]
[357318577,1744005152978,-257.16881907,0.00737496,120]
[357318578,1744005152987,-155.6093181,0.0073778,120]
[357318579,1744005152997,-688.91881527,0.00737964,120]
[357318580,1744005153007,-835.54960573,0.00738007,120]
[357318581,1744005153016,-2029.8096563,0.00738016,120]
[357318582,1744005153025,-835.54960573,0.0073803,120]
[357318583,1744005153035,-200.0,0.00738174,120]
[357318584,1744005153045,-155.6093181,0.00738538,120]
[357318585,1744005153055,-29000.0,0.0073869,120]
[357318586,1744005153064,-155.6093181,0.00739295,120]
[357318587,1744005153074,-5708.41486668,0.00739348,120]
[357318588,1744005153083,-150.0,0.00739464,120]
[357318589,1744005153092,-5708.41486668,0.00739629,120]
[357318590,1744005153102,-250000.0,0.0074,120]
[357318591,1744005153112,-200.0,0.0074,120]
[357318592,1744005153121,-155.6093181,0.00740053,120]
[357318593,1744005153131,-1066.63342223,0.00740138,120]
[357318594,1744005153141,-200.0,0.00740354,120]
[357318595,1744005153151,-155.6093181,0.0074081,120]
[357318596,1744005153161,-155.6093181,0.00741568,120]
[357318597,1744005153171,-231281.153265,0.00741681,7]
[357318598,1744005153180,-155.6093181,0.00742325,120]
[357318599,1744005153190,-155.6093181,0.00743083,120]
[357318600,1744005153199,-155.6093181,0.0074384,120]
[357318601,1744005153208,-155.6093181,0.00744598,120]
[357318602,1744005153218,-155.6093181,0.00745355,120]
[357318603,1744005153227,-155.6093181,0.00746113,120]
[357318604,1744005153237,-1333.19988258,0.00746757,120]
[357318605,1744005153246,-155.6093181,0.0074687,120]
[357318606,1744005153256,-600.0,0.0074747,120]
[357318607,1744005153266,-155.6093181,0.00747628,120]
[357318608,1744005153275,-155.6093181,0.00748385,120]
[357318609,1744005153285,-1901.69249346,0.007488,120]
[357318610,1744005153433,-504.419,0.00035944,2]
[357318611,1744005153443,-500.0,0.0005041,120]
[357318612,1744005153453,-500.0,0.00050684,120]
[357318613,1744005153463,-500.0,0.00050958,120]
[357318614,1744005153474,-500.0,0.00051232,120]
[357318615,1744005153484,-500.0,0.00051506,120]
[357318616,1744005153494,-500.0,0.0005178,120]
[357318617,1744005153503,-1453.83496099,0.0015,120]
[357318618,1744005153524,-500.0,0.00052054,120]
[357318619,1744005153534,-137.86760012,0.0015,120]
[357318620,1744005153546,-434.43706152,0.0015,120]
[357318621,1744005153673,-496.302152,0.0015,120]
[357318622,1744005153686,-308.17043532,0.0015,120]
[357318623,1744005153699,-313.06330969,0.0015,120]
[357318624,1744005153765,-1238.05147258,0.0015,120]
[357318625,1744005153778,-1995618.27300778,0.0015,120]
[357318626,1744005153789,-8069.12590654,0.007488,120]
[357318627,1744005153798,-10000.0,0.007488,120]
[357318628,1744005153808,-10917.7180814,0.0074898,120]
[357318629,1744005153818,-155.6093181,0.00749143,120]
[357318630,1744005153828,-300.0,0.0074987,120]
[357318631,1744005153837,-10000.0,0.007499,120]
[357318632,1744005153847,-165.0,0.007499,120]
[357318633,1744005153856,-155.6093181,0.007499,120]
[357318634,1744005153867,-1000.0,0.0075,120]
[357318635,1744005153877,-13112.39147502,0.0075,120]
[357318636,1744005153887,-1000.0,0.0075,120]
[357318637,1744005153914,-500.0,0.00052328,120]
[357318638,1744005153924,-1212.81152722,0.0076,120]
[357318639,1744005153936,-584.30321613,0.0076,120]
[357318640,1744005154010,-500.0,0.00049315,120]
[357318641,1744005154052,-263.46801222,0.00052602,120]
[357318642,1744005154110,500.0,0.00049589,120]
[357318643,1744005154173,500.0,0.00049863,120]
[357318644,1744005154227,500.0,0.00050136,120]
[357318645,1744005154281,6309.14313237,0.000488,120]
[357318646,1744005154345,500.0,0.0005041,120]
[357318647,1744005154399,500.0,0.00050684,120]
[357318648,1744005154451,425.23669637,0.00050958,120]
[357318649,1744005154530,500.0,0.00049315,120]
[357318650,1744005154581,512.93,0.00049589,120]
[357318651,1744005154654,151.0,0.00063014,120]
[357318652,1744005154719,151.0,0.00064,120]
[357318653,1744005156203,-2260.52627184,0.00044987,30]
[357318654,1744005156248,-500.0,0.00049315,120]
[357318655,1744005156292,-537.52,0.00049315,120]
[357318656,1744005156344,-500.0,0.00049315,120]
[357318657,1744005156387,-500.0,0.00049315,120]
[357318658,1744005156431,-500.0,0.00049315,120]
[357318659,1744005156476,-500.0,0.00049315,120]
[357318660,1744005156519,-500.0,0.00049315,120]
[357318661,1744005156563,-500.0,0.00049315,30]
[357318662,1744005156606,-500.0,0.00049315,30]
[357318663,1744005156650,-500.0,0.00049315,120]
[357318664,1744005156694,-500.0,0.00049315,120]
[357318665,1744005156738,-646.85,0.00049315,120]
[357318666,1744005156778,-500.0,0.00049589,120]
[357318667,1744005156816,-537.52,0.00049589,120]
[357318668,1744005156853,-500.0,0.00049589,120]
[357318669,1744005156890,-500.0,0.00049589,120]
[357318670,1744005156927,-500.0,0.00049589,120]
[357318671,1744005156964,-500.0,0.00049589,120]
[357318672,1744005157001,-500.0,0.00049589,120]
[357318673,1744005157037,-500.0,0.00049589,30]
[357318674,1744005157075,-500.0,0.00049589,30]
[357318675,1744005157113,-500.0,0.00049589,120]
[357318676,1744005157152,-500.0,0.00049589,120]
[357318677,1744005157190,-500.0,0.00049863,120]
[357318678,1744005157227,-537.52,0.00049863,120]
[357318679,1744005157262,-500.0,0.00049863,120]
[357318680,1744005157300,-500.0,0.00049863,120]
[357318681,1744005157337,-500.0,0.00049863,120]
[357318682,1744005157375,-500.0,0.00049863,120]
[357318683,1744005157413,-500.0,0.00049863,120]
[357318684,1744005157453,-500.0,0.00049863,30]
[357318685,1744005157491,-500.0,0.00049863,30]
[357318686,1744005157529,-500.0,0.00049863,120]
[357318687,1744005157566,-500.0,0.00049863,120]
[357318688,1744005157604,-500.0,0.00050136,120]
[357318689,1744005157643,-537.52,0.00050136,120]
[357318690,1744005157683,-500.0,0.00050136,120]
[357318691,1744005157720,-310.81898572,0.00050136,120]
[357318692,1744005157758,-500.0,0.00050136,120]
[357318693,1744005157796,-500.0,0.00050136,120]
[357318694,1744005157835,-500.0,0.00050136,120]
[357318695,1744005157873,-500.0,0.00050136,30]
[357318696,1744005157914,-500.0,0.00050136,30]
[357318697,1744005157953,-544.02,0.00050136,120]
[357318698,1744005157999,-197.39124496,0.00050136,120]
[357318699,1744005158039,-500.0,0.0005041,120]
[357318700,1744005158078,-537.52,0.0005041,120]
[357318701,1744005158202,-500.0,0.0005041,120]
[357318702,1744005158246,-500.0,0.0005041,120]
[357318703,1744005158292,-500.0,0.0005041,120]
[357318704,1744005158335,-500.0,0.0005041,120]
[357318705,1744005158381,-500.0,0.0005041,30]
[357318706,1744005158425,-500.0,0.0005041,30]
[357318707,1744005158469,-500.0,0.00050684,120]
[357318708,1744005158513,-537.52,0.00050684,120]
[357318709,1744005158556,-175.32539437,0.00050684,120]
[357318710,1744005158599,-500.0,0.00050684,120]
[357318711,1744005158645,-500.0,0.00050684,120]
[357318712,1744005158690,-500.0,0.00050684,120]
[357318713,1744005158735,-545.45221533,0.00050684,30]
[357318714,1744005158778,-179.50309174,0.00050684,30]
[357318715,1744005158824,-564.41090503,0.00050958,120]
[357318716,1744005158875,-537.52,0.00050958,120]
[357318717,1744005158921,-500.0,0.00050958,120]
[357318718,1744005158971,-500.0,0.00050958,120]
[357318719,1744005159015,-500.0,0.00050958,120]
[357318720,1744005159059,-537.52,0.00051232,120]
[357318721,1744005159103,-500.0,0.00051232,120]
[357318722,1744005159149,-500.0,0.00051232,120]
[357318723,1744005159193,-500.0,0.00051232,120]
[357318724,1744005159240,-537.52,0.00051506,120]
[357318725,1744005159285,-450.06774245,0.00051506,120]
[357318726,1744005159329,-500.0,0.00051506,120]
[357318727,1744005159375,-500.0,0.00051506,120]
[357318728,1744005159425,-537.52,0.0005178,120]
[357318729,1744005159478,-500.0,0.0005178,120]
[357318730,1744005159528,-500.0,0.0005178,120]
[357318731,1744005159581,-537.52,0.00052054,120]
[357318732,1744005159630,-500.0,0.00052054,120]
[357318733,1744005159676,-500.0,0.00052054,120]
[357318734,1744005159726,-537.52,0.00052328,120]
[357318735,1744005159773,-500.0,0.00052328,120]
[357318736,1744005159820,-500.0,0.00052328,120]
[357318737,1744005159866,-537.52,0.00052602,120]
[357318738,1744005159915,-500.0,0.00052602,120]
[357318739,1744005159964,-500.0,0.00052602,120]
[357318740,1744005160008,-537.52,0.00052876,120]
[357318741,1744005160053,-500.0,0.00052876,120]
[357318742,1744005160097,-500.0,0.00052876,120]
[357318743,1744005160141,-537.52,0.0005315,120]
[357318744,1744005160185,-500.0,0.0005315,120]
[357318745,1744005160228,-500.0,0.0005315,120]
[357318746,1744005160270,-537.52,0.00053424,120]
[357318747,1744005160313,-500.0,0.00053424,120]
[357318748,1744005160358,-500.0,0.00053424,120]
[357318749,1744005160403,-500.0,0.00053424,30]
[357318750,1744005160449,-537.52,0.00053698,120]
[357318751,1744005160492,-500.0,0.00053698,120]
[357318752,1744005160535,-500.0,0.00053698,120]
[357318753,1744005160580,-537.52,0.00053972,120]
[357318754,1744005160628,-500.0,0.00053972,120]
[357318755,1744005160675,-500.0,0.00053972,120]
[357318756,1744005160727,-500.0,0.00053972,32]
[357318757,1744005160776,-537.52,0.00054246,120]
[357318758,1744005160823,-500.0,0.00054246,120]
[357318759,1744005160872,-500.0,0.00054246,120]
[357318760,1744005160932,-537.52,0.0005452,120]
[357318761,1744005160981,-534.9847,0.0005452,120]
[357318762,1744005161025,-500.0,0.0005452,120]
[357318763,1744005161070,-525.09475798,0.0005452,34]
[357318764,1744005161116,-537.52,0.00054794,120]
[357318765,1744005161157,-500.0,0.00054794,120]
[357318766,1744005161198,-500.0,0.00054794,120]
[357318767,1744005161241,-500.0,0.00054794,120]
[357318768,1744005161281,-500.0,0.00054794,120]
[357318769,1744005161323,-251.50381839,0.00054794,120]
[357318770,1744005161365,-537.52,0.00055068,120]
[357318771,1744005161412,-500.0,0.00055068,120]
[357318772,1744005161464,-537.52,0.00055342,120]
[357318773,1744005161511,-242.11020196,0.00055342,120]
[357318774,1744005161556,-537.68073762,0.00055616,120]
[357318775,1744005161600,-2000.0,0.000573,90]
[357318776,1744005161644,-517.55865145,0.00057987,30]
[357318777,1744005161687,-2000.0,0.0006,90]
[357318778,1744005161730,-2000.0,0.000627,90]
[357318779,1744005161771,-2000.0,0.000655,120]
[357318780,1744005161812,-2000.0,0.000682,120]
[357318781,1744005161852,-593.72444774,0.00068805,30]
[357318782,1744005161901,-2000.0,0.00071,120]
[357318783,1744005161945,-200.0,0.00071233,30]
[357318784,1744005161989,-151.0,0.00072,120]
[357318785,1744005162033,-2000.0,0.000737,120]
[357318786,1744005162084,207.4,0.00071233,30]
[357318787,1744005162133,500.0,0.00049315,120]
[357318788,1744005162186,633.11,0.00049315,120]
[357318789,1744005162236,453.71584847,0.00049589,120]
[357318790,1744005162294,215.0738,0.00071233,30]
[357318791,1744005162348,223.0315306,0.00071233,30]
[357318792,1744005162399,500.0,0.00049315,120]
[357318793,1744005162454,500.0,0.00049589,120]
[357318794,1744005162710,231.28369723,0.00071233,30]
[357318795,1744005162760,283.87318639,0.00049863,120]
[357318796,1744005162812,500.0,0.00049315,120]
[357318797,1744005162873,500.0,0.00049589,120]
[357318798,1744005162933,239.84119403,0.00071233,30]
[357318799,1744005163009,248.71531821,0.00071233,30]
[357318800,1744005163085,257.91778498,0.00071233,30]
[357318801,1744005163134,151.0,0.00064,120]
[357318802,1744005163195,267.46074303,0.00071233,30]
[357318803,1744005163243,151.0,0.000645,120]
[357318804,1744005163308,151.0,0.000655,120]
[357318805,1744005163369,277.35679052,0.00071233,30]
[357318806,1744005163463,156.4191,0.00067,120]
[357318807,1744005163521,287.61899177,0.00071233,30]
[357318808,1744005163598,298.26089446,0.00071233,30]
[357318809,1744005163645,3633.773223,0.00064,120]
[357318810,1744005163711,3633.773223,0.000645,120]
[357318811,1744005163763,309.29654756,0.00071233,30]
[357318812,1744005163816,3633.773223,0.000655,120]
[357318813,1744005163866,3633.773223,0.00067,120]
[357318814,1744005163922,320.74051982,0.00071233,30]
[357318815,1744005163978,3633.773223,0.000675,120]
[357318816,1744005164031,332.60791905,0.00071233,30]
[357318817,1744005164085,3633.773223,0.000685,120]
[357318818,1744005164143,3633.773223,0.000695,120]
[357318819,1744005164199,344.91441206,0.00071233,30]
[357318820,1744005164251,3633.773223,0.0007015,120]
[357318821,1744005164306,357.6762453,0.00071233,30]
[357318822,1744005164352,3633.773223,0.00071,120]
[357318823,1744005164410,3633.773223,0.00072,120]
[357318824,1744005164459,370.91026638,0.00071233,30]
[357318825,1744005164508,3633.773223,0.00064,120]
[357318826,1744005164554,500.0,0.00059913,120]
[357318827,1744005164600,151.0,0.00064,120]
[357318828,1744005164650,500.0,0.00049315,120]
[357318829,1744005164701,3633.773223,0.000645,120]
[357318830,1744005366148,-159.0,0.00025,12]
[357318831,1744005415537,-315.3407,0.00024977,2]
[357318832,1744005415869,-250.0,0.00024988,2]
[357318833,1744005415896,-250.0,0.00027474,2]
[357318834,1744005415922,-910.09056009,0.00031435,2]
[357318835,1744005415946,-250.94210447,0.00034565,2]
[357318836,1744005415971,-150.98995775,0.00040996,2]
[357318837,1744005415995,-1000.0,0.00041096,6]
[357318838,1744005416020,-1000.0,0.00041096,6]
[357318839,1744005416048,-1000.0,0.00041233,20]
[357318840,1744005416073,-1000.0,0.00041233,20]
[357318841,1744005416099,-1000.0,0.0004137,20]
[357318842,1744005416124,-1000.0,0.0004137,20]
[357318843,1744005416149,-14561.05910814,0.00041398,2]
[357318844,1744005416172,-150.99,0.00041398,2]
[357318845,1744005416196,-1000.0,0.00041507,20]
[357318846,1744005416221,-1000.0,0.00041507,20]
[357318847,1744005416244,-1000.0,0.00041644,20]
[357318848,1744005416268,-1000.0,0.00041644,20]
[357318849,1744005416292,-1000.0,0.00041781,20]
[357318850,1744005416316,-1000.0,0.00041781,20]
[357318851,1744005416340,-1000.0,0.00041918,20]
[357318852,1744005416364,-1000.0,0.00041918,20]
[357318853,1744005416389,-1000.0,0.00042055,20]
[357318854,1744005416413,-1000.0,0.00042055,20]
[357318855,1744005416438,-1000.0,0.00042192,20]
[357318856,1744005416462,-1000.0,0.00042192,20]
[357318857,1744005416486,-1000.0,0.00042329,20]
[357318858,1744005416511,-1000.0,0.00042466,20]
[357318859,1744005416535,-1000.0,0.00042603,20]
[357318860,1744005416559,-1115.51786131,0.0004263,5]
[357318861,1744005416583,-1000.0,0.0004263,2]
[357318862,1744005416609,-1000.0,0.0004274,20]
[357318863,1744005416635,-3056.84038151,0.00042817,2]
[357318864,1744005416660,-1000.0,0.00042877,20]
[357318865,1744005416684,-1000.0,0.00043014,20]
[357318866,1744005416708,-1000.0,0.00043151,20]
[357318867,1744005416733,-1804.4310861,0.00043864,2]
[357318868,1744005416757,-1183.79824063,0.0004399,30]
[357318869,1744005418187,-793.35615648,0.0004399,30]
[357318870,1744005418214,-151.0,0.00045,120]
[357318871,1744005418240,-151.0,0.00045,120]
[357318872,1744005418267,-152.12,0.00047622,2]
[357318873,1744005418293,-1191.22,0.00047794,2]
[357318874,1744005418319,-1000.0,0.00047878,2]
[357318875,1744005418343,-150.0,0.00049314,4]
[357318876,1744005418370,-150.0,0.00049314,120]
[357318877,1744005418399,-500.0,0.00049315,120]
[357318878,1744005418424,-500.0,0.00049315,120]
[357318879,1744005418449,-512.07585919,0.00049315,120]
[357318880,1744005418475,-500.0,0.00049315,120]
[357318881,1744005418499,-500.0,0.00049315,120]
[357318882,1744005418527,-500.0,0.00049315,120]
[357318883,1744005418552,-500.0,0.00049315,120]
[357318884,1744005418577,-500.0,0.00049315,120]
[357318885,1744005418604,-500.0,0.00049315,120]
[357318886,1744005418632,-500.0,0.00049315,120]
[357318887,1744005418658,-500.0,0.00049315,120]
[357318888,1744005418683,-500.0,0.00049315,2]
[357318889,1744005418708,-575.9,0.00049315,120]
[357318890,1744005418733,-500.0,0.00049315,120]
[357318891,1744005418757,-500.0,0.00049315,120]
[357318892,1744005418785,-500.0,0.00049315,120]
[357318893,1744005418819,-500.0,0.00049315,120]
[357318894,1744005418844,-500.0,0.00049315,120]
[357318895,1744005418869,-500.0,0.00049315,120]
[357318896,1744005418893,-1000.0,0.00049315,120]
[357318897,1744005418918,-511.74,0.00049315,120]
[357318898,1744005418944,-500.0,0.00049315,120]
[357318899,1744005418969,-500.0,0.00049315,120]
[357318900,1744005418996,-532.01738967,0.00049315,120]
[357318901,1744005419022,-500.0,0.00049315,120]
[357318902,1744005419049,-500.0,0.00049315,120]
[357318903,1744005419074,-500.0,0.00049589,120]
[357318904,1744005419098,-397.87,0.00049589,120]
[357318905,1744005419126,-648.55,0.00049589,120]
[357318906,1744005419152,-500.0,0.00049589,120]
[357318907,1744005419184,-358.09,0.00049589,120]
[357318908,1744005419211,-335.21,0.00049589,120]
[357318909,1744005419236,-334.05,0.00049589,120]
[357318910,1744005419261,-373.02,0.00049589,120]
[357318911,1744005419285,-324.63,0.00049589,120]
[357318912,1744005419311,-320.75,0.00049589,120]
[357318913,1744005419335,-500.0,0.00049589,2]
[357318914,1744005419359,-500.0,0.00049589,120]
[357318915,1744005419385,-151.79826161,0.00049589,120]
[357318916,1744005419410,-500.0,0.00049589,120]
[357318917,1744005419434,-161.76,0.00049589,120]
[357318918,1744005419460,-389.0,0.00049589,120]
[357318919,1744005419484,-1000.0,0.00049589,120]
[357318920,1744005419509,-500.0,0.00049589,120]
[357318921,1744005419534,-585.37530408,0.00049863,120]
[357318922,1744005419559,-500.0,0.00049863,120]
[357318923,1744005419582,-503.15158163,0.00049863,2]
[357318924,1744005419607,-421.9,0.00049863,120]
[357318925,1744005419826,-500.0,0.00049863,120]
[357318926,1744005419859,-1000.0,0.00049863,120]
[357318927,1744005419886,-512.93,0.00049863,120]
[357318928,1744005419912,-282.0,0.0005,120]
[357318929,1744005419936,-303.7396,0.00050036,2]
[357318930,1744005419962,-152.12,0.00050039,120]
[357318931,1744005419988,-500.0,0.00050136,120]
[357318932,1744005420013,-500.0,0.00050136,120]
[357318933,1744005420039,-1000.0,0.00050136,120]
[357318934,1744005420068,-700.0,0.0005024,18]
[357318935,1744005420094,-700.0,0.0005024,18]
[357318936,1744005420123,-160.47685061,0.0005041,120]
[357318937,1744005420148,-500.0,0.0005041,120]
[357318938,1744005420173,-1000.0,0.0005041,120]
[357318939,1744005420199,-500.0,0.00050684,120]
[357318940,1744005420225,-1000.0,0.00050684,120]
[357318941,1744005420251,-500.0,0.00050958,120]
[357318942,1744005420277,-1000.0,0.00050958,120]
[357318943,1744005420303,-480.89482702,0.00051232,120]
[357318944,1744005420328,-353.36715506,0.00051232,120]
[357318945,1744005420354,-2000.0,0.000518,2]
[357318946,1744005420380,-282.0,0.00052,120]
[357318947,1744005420405,-559.19,0.00052413,2]
[357318948,1744005420431,-152.12,0.00052456,120]
[357318949,1744005420456,-8185.57701465,0.000529,16]
[357318950,1744005441283,-2034.26676366,0.000455,120]
[357318951,1744005441329,-1000.0,0.00053863,120]
[357318952,1744005441373,-282.0,0.00054,120]
[357318953,1744005441419,-200.0,0.00054693,119]
[357318954,1744005441465,-402.32610091,0.00054694,119]
[357318955,1744005441510,-200.0,0.00054697,119]
[357318956,1744005441556,-1268.79605155,0.00054705,119]
[357318957,1744005441601,-200.0,0.00054709,119]
[357318958,1744005441645,-402.32610091,0.00054711,119]
[357318959,1744005442053,-237.29500331,0.00054713,119]
[357318960,1744005442099,-1268.79605155,0.00054713,119]
[357318961,1744005442147,-1268.79605155,0.00054715,119]
[357318962,1744005442194,-237.29500331,0.00054718,119]
[357318963,1744005442241,-1268.79605155,0.00054722,119]
[357318964,1744005442286,-237.29500331,0.00054723,119]
[357318965,1744005442328,-200.0,0.00054724,119]
[357318966,1744005442375,-237.29500331,0.00054729,119]
[357318967,1744005442424,-402.32610091,0.00054736,119]
[357318968,1744005442472,-237.29500331,0.00054736,119]
[357318969,1744005442517,-237.29500331,0.00054738,119]
[357318970,1744005442562,-200.0,0.00054746,119]
[357318971,1744005442620,-1268.79605155,0.00054747,119]
[357318972,1744005442676,-200.0,0.00054747,119]
[357318973,1744005442724,-200.0,0.00054747,119]
[357318974,1744005442772,-402.32610091,0.00054752,119]
[357318975,1744005442820,-200.0,0.00054754,119]
[357318976,1744005442868,-1268.79605155,0.00054756,119]
[357318977,1744005442916,-200.0,0.00054758,119]
[357318978,1744005442962,-402.32610091,0.00054765,119]
[357318979,1744005443010,-1268.79605155,0.00054776,119]
[357318980,1744005443055,-402.32610091,0.00054776,119]
[357318981,1744005443098,-237.29500331,0.00054778,119]
[357318982,1744005443142,-200.0,0.00054778,119]
[357318983,1744005443183,-200.0,0.00054779,119]
[357318984,1744005443228,-237.29500331,0.00054781,119]
[357318985,1744005443272,-200.0,0.00054782,119]
[357318986,1744005443318,-402.32610091,0.00054782,119]
[357318987,1744005443362,-402.32610091,0.00054783,119]
[357318988,1744005443408,-402.32610091,0.00054785,119]
[357318989,1744005443455,-1268.79605155,0.00054785,119]
[357318990,1744005443500,-402.32610091,0.00054785,119]
[357318991,1744005443544,-200.0,0.0005479,119]
[357318992,1744005443590,-1268.79605155,0.0005479,119]
[357318993,1744005443636,-1268.79605155,0.0005479,119]
[357318994,1744005443682,-237.29500331,0.0005479,119]
[357318995,1744005443733,-340.64901729,0.00054794,120]
[357318996,1744005443778,-500.0,0.00054794,30]
[357318997,1744005443822,-500.0,0.00054794,120]
[357318998,1744005443866,-177.16745533,0.00054794,120]
[357318999,1744005443912,-633.11,0.00054794,120]
[357319000,1744005443957,-500.0,0.00054794,120]
[357319001,1744005444002,-500.0,0.00054794,120]
[357319002,1744005444047,-500.0,0.00054794,120]
[357319003,1744005444091,-283.87318639,0.00054794,120]
[357319004,1744005444135,-500.0,0.00054794,120]
[357319005,1744005444178,-588.48797976,0.00054794,120]
[357319006,1744005444222,-500.0,0.00054794,30]
[357319007,1744005444264,-500.0,0.00054794,30]
[357319008,1744005444306,-500.0,0.00054794,30]
[357319009,1744005444349,-500.0,0.00054794,30]
[357319010,1744005444393,-523.51671892,0.00054794,30]
[357319011,1744005444440,-500.0,0.00054794,120]
[357319012,1744005444485,-500.0,0.00054794,120]
[357319013,1744005444531,-500.0,0.00054794,120]
[357319014,1744005444578,-288.03,0.00054794,120]
[357319015,1744005444624,-500.0,0.00054794,120]
[357319016,1744005444671,-364.15,0.00054794,120]
[357319017,1744005444716,-500.0,0.00054794,120]
[357319018,1744005444761,-500.0,0.00054794,120]
[357319019,1744005444804,-500.0,0.00054794,120]
[357319020,1744005444845,-500.0,0.00054794,120]
[357319021,1744005444887,-280.87428505,0.00054794,120]
[357319022,1744005444926,-1447.63,0.00054794,120]
[357319023,1744005444967,-1447.63,0.00054794,120]
[357319024,1744005445009,-1447.63,0.00054794,120]
[357319025,1744005445051,-1447.63,0.00054794,120]
[357319026,1744005445094,-1447.63,0.00054794,120]
[357319027,1744005445135,-1447.63,0.00054794,120]
[357319028,1744005445178,-1447.63,0.00054794,120]
[357319029,1744005445218,-299.99,0.00054794,120]
[357319030,1744005445259,-500.0,0.00054794,120]
[357319031,1744005445300,-500.0,0.00054794,120]
[357319032,1744005445341,-500.0,0.00054794,120]
[357319033,1744005445383,-500.0,0.00054794,120]
[357319034,1744005445432,-163.13139641,0.00054794,120]
[357319035,1744005445478,-500.0,0.00054794,120]
[357319036,1744005445521,-200.0,0.00054795,119]
[357319037,1744005445567,-200.0,0.00054795,119]
[357319038,1744005445612,-152.12,0.00054873,120]
[357319039,1744005445658,-500.0,0.00055068,30]
[357319040,1744005445704,-500.0,0.00055342,30]
[357319041,1744005445750,-500.0,0.00055616,30]
[357319042,1744005445795,-500.0,0.0005589,30]
[357319043,1744005445839,-282.0,0.00056,120]
[357319044,1744005445882,-500.0,0.00056164,30]
[357319045,1744005445925,-283.71949868,0.00056438,30]
[357319046,1744005445968,-1447.63,0.00056788,120]
[357319047,1744005446010,-152.12,0.0005729,120]
[357319048,1744005446052,-282.0,0.00058,120]
[357319049,1744005446092,-151.0,0.00058027,120]
[357319050,1744005446133,-9726.83,0.000588,120]
[357319051,1744005446175,-152.12,0.00059707,120]
[357319052,1744005446453,-1000.0,0.00059848,120]
[357319053,1744005446499,-282.0,0.0006,120]
[357319054,1744005446544,-500.0,0.00060499,120]
[357319055,1744005446588,-182.99,0.000605,60]
[357319056,1744005446633,-181.5563388,0.00060899,83]
[357319057,1744005446679,-266.83,0.00060998,30]
[357319058,1744005446727,-1447.63,0.00060999,120]
[357319059,1744005446771,-1447.63,0.00060999,120]
[357319060,1744005446816,-1447.63,0.00060999,120]
[357319061,1744005446863,-1447.63,0.00060999,120]
[357319062,1744005446908,-1447.63,0.00060999,120]
[357319063,1744005446956,-1447.63,0.00060999,120]
[357319064,1744005447004,-1447.63,0.00060999,120]
[357319065,1744005447053,-1447.63,0.00060999,120]
[357319066,1744005447104,-1447.63,0.00061499,120]
[357319067,1744005447157,-1447.63,0.00061499,120]